Cogmind - Beta 16.1 @@@ ROGUE MODE // 2026.04.24 @ 10:49:30 Player: winnking222 Result: Destroyed by B-75 Beast with Heavy Machine Gun Performance ------------- Evolutions (1) 500 Regions Visited (5) 1000 Robots Destroyed (103) 515 Value Destroyed (3456) 3456 Prototype IDs (5) 100 Alien Tech Used (0) 0 Bonus (1814) 1814 TOTAL SCORE: 7385 Bonus ------- High Alert Combat Kills 406 Follower Combat Kills 729 Entered Garrisons 200 Used RIF Installer 500 Friendly Fire -21 Cogmind --------- Core Integrity 0/400 Matter 63/300 Energy 100/100 System Corruption 2% Temperature Warning (352) Movement Treading (240) Ox1 Location -9/Garrison Parts ------- > --- POWER (1) -------- (None) > --- PROPULSION (3) --- Light Treads Light Treads Improved Treads > --- UTILITY (2) ------ Huge Storage Unit Hardened Medium Armor Plating > --- WEAPON (3) ------- Autogun Autogun Improved Assault Rifle (fused) > --- INVENTORY (25) --- Micro Nuclear Core Compact Wheel Armored Wheel High-capacity Storage Unit High-capacity Storage Unit High-capacity Matter Pod (200) Structural Scanner Seismic Detector Hardened Medium Armor Plating Relay Coupler [NC] (21) Relay Coupler [Grunt] (31) Relay Coupler [Grunt] (26) Relay Coupler [Sentry] (18) Relay Coupler [Heavy] (14) Relay Coupler [Behemoth] (9) Heavy Assault Rifle Autogun Improved Assault Rifle Rocket Launcher Plasma Cutter Katana Peak State ------------ > --- POWER ------------ Heavy Ion Engine > --- PROPULSION ------- Light Treads Improved Treads Improved Treads > --- UTILITY ---------- Huge Storage Unit Hardened Medium Armor Plating > --- WEAPON ----------- Improved Assault Rifle Improved Assault Rifle Improved Assault Rifle > --- INVENTORY -------- Improved Ion Engine Light Treads Improved Treads Compact Wheel Armored Wheel High-capacity Storage Unit High-capacity Storage Unit High-capacity Matter Pod Structural Scanner Seismic Detector Hardened Medium Armor Plating Relay Coupler [NC] Relay Coupler [Grunt] Relay Coupler [Heavy] Relay Coupler [Behemoth] Autogun Autogun Autogun Autogun Improved Assault Rifle Rocket Launcher Plasma Cutter Katana [Rating: 26] Favorites ----------- Power Ion Engine Engine Ion Engine Propulsion Light Treads Treads Light Treads Leg Aluminum Leg Utility High-capacity Storage Unit Device Seismic Detector Storage High-capacity Storage Unit Protection Hardened Medium Armor Plating Weapon Improved Assault Rifle Energy Gun Small Laser Ballistic Gun Improved Assault Rifle Launcher Rocket Launcher Slashing Weapon Katana Build | -11 -10 -10 -9 -9 -9 ------- Run | Yrd Mat Min Mat Sto Gar Slots Evolved 2 | . . . 2 . . Power . | . . . . . . Propulsion 1 | . . . 1 . . Utility . | . . . . . . Weapon 1 | . . . 1 . . Parts Attached 65 | 7 9 4 24 11 10 Power 6 | 1 1 1 2 1 . Engine 6 | 1 1 1 2 1 . Core . | . . . . . . Reactor . | . . . . . . Propulsion 21 | 2 2 2 9 2 4 Treads 19 | . 2 2 9 2 4 Leg 2 | 2 . . . . . Wheel . | . . . . . . Hover . | . . . . . . Flight . | . . . . . . Utility 10 | 2 4 . 1 2 1 Device 3 | 1 2 . . . . Storage 5 | 1 2 . . 1 1 Processor . | . . . . . . Hackware . | . . . . . . Protection 2 | . . . 1 1 . Artifact . | . . . . . . Weapon 28 | 2 2 1 12 6 5 Energy Gun 5 | 2 . 1 1 1 . Energy Cannon . | . . . . . . Ballistic Gun 21 | . 2 . 10 4 5 Ballistic Cannon . | . . . . . . Launcher 1 | . . . 1 . . Special Weapon . | . . . . . . Impact Weapon . | . . . . . . Slashing Weapon 1 | . . . . 1 . Piercing Weapon . | . . . . . . Special Melee Weapon . | . . . . . . Unidentified Prototypes 5 | . . . 3 2 . Parts Lost 7 | . 2 . . . 5 Power 1 | . . . . . 1 Propulsion 3 | . . . . . 3 Utility 1 | . 1 . . . . Weapon 2 | . 1 . . . 1 Highest Loss Streak 5 | . 1 . . . 5 To Critical Strikes . | . . . . . . Average Backups 17 | 5 11 15 19 19 23 Power 1 | . 1 1 1 1 1 Propulsion 5 | 3 5 5 5 4 4 Utility 6 | . 2 5 6 6 10 Weapon 4 | 1 1 2 6 6 6 Tool/Special . | . . . . . . Unused Backups 30 | . 1 2 8 1 18 Power 4 | . . . 1 . 3 Propulsion 6 | . 1 1 1 1 2 Utility 14 | . . . 3 . 11 Weapon 5 | . . 1 3 . 1 Tool/Special 1 | . . . . . 1 Average Slot Usage (%) 99 | . 99 100 98 100 99 Engine 12 | . 14 14 11 11 11 Treads 28 | . 16 28 32 33 32 Leg 2 | . 11 . . . . Device 6 | . 13 14 6 . . Storage 12 | . 14 14 11 11 11 Protection 5 | . . . 4 11 11 Energy Gun 6 | . 14 14 2 . . Ballistic Gun 23 | . 13 14 30 32 29 Peak Build Rating 26 | 7 8 10 23 24 26 Average Rating 16 | 5 7 8 17 23 25 On Entrance 11 | . 7 8 9 22 24 Avg Prop Armor Cover (%) . | . . . . . . Naked Turns . | . . . . . . Heaviest Build 105 | 11 49 51 65 66 105 Greatest Support 66 | 20 40 40 66 66 66 Greatest Overweight (x) 2 | 2 2 1 1 . 1 Average Overweight (x) . | . 1 1 . . . Largest Inventory Capacity 25 | 8 20 20 20 20 25 Average Capacity 20 | 7 18 20 20 20 24 Most Carried 25 | 8 16 20 20 20 25 Average Carried 17 | 5 11 15 19 19 23 Final Capacity 25 | 8 20 20 20 20 25 Final Carried 21 | 6 15 17 20 19 21 Class Distribution -------------------- 47% | Mutant 22% | Tank 18% | Commander-Tank 5% | Gunner 5% | Scavenger-Gunner Dominant Class ---------------- Mutant | -10/Materials Mutant | -10/Mines Tank | -9/Materials Commander-Tank | -9/Storage Tank | -9/Garrison Resources | -11 -10 -10 -9 -9 -9 ----------- Run | Yrd Mat Min Mat Sto Gar Matter Collected 3043 | 270 472 55 947 839 460 Remotely . | . . . . . . Salvage Created 3591 | 170 687 35 1060 1028 611 Parts 247 | 14 37 3 81 63 49 Haulers Intercepted 10 | . 1 . 3 6 . Recyclers Shooed . | . . . . . . Parts Field Recycled . | . . . . . . Retrieved Matter . | . . . . . . Parts Self-Destructed . | . . . . . . Prevented . | . . . . . . Parts Restored . | . . . . . . Kills | -11 -10 -10 -9 -9 -9 ------- Run | Yrd Mat Min Mat Sto Gar Combat Hostiles Destroyed 78 | . 14 1 27 18 18 Guns 71 | . 14 1 25 13 18 AOE 7 | . . . 2 5 . Classes Destroyed 12 | 2 3 . 3 3 1 Worker 3 | . . . 2 1 . Builder 1 | . . . . 1 . Tunneler 4 | 4 . . . . . Hauler 10 | . 1 . 3 6 . Recycler 1 | 1 . . . . . Watcher 6 | . 2 . 3 1 . Swarmer 19 | . . . 14 . 5 Grunt 38 | . 14 1 4 9 10 Brawler 1 | . . . . 1 . Protector 2 | . . . . 2 . Sentry 17 | . . . 9 6 2 Programmer 1 | . . . . . 1 Best Kill Streak 8 | 3 3 1 6 8 4 Combat Bots Only 6 | . 2 1 5 6 4 Max Kills in Single Turn 3 | 1 1 1 2 3 2 Gunslinging 1 | . . . 1 1 1 Exploded 3 | . . . 2 3 . Melee . | . . . . . . Uniques/NPCs Destroyed . | . . . . . . Combat | -11 -10 -10 -9 -9 -9 -------- Run | Yrd Mat Min Mat Sto Gar Hostile Shots Fired 363 | . 92 7 102 46 116 Missed 104 | . 30 5 24 8 37 Hits 259 | . 62 2 78 38 79 Projectile 259 | . 62 2 78 38 79 AOE 1 | . . . . . 1 Critical Strikes 6 | . 1 . 3 2 . Damage Taken 3946 | . 765 21 915 543 1702 Core 536 | . 127 . 137 43 229 Absorbed by Shields . | . . . . . . Core Remaining (%) 74 | 100 . 49 . . . Volleys Fired 259 | 13 66 5 68 55 52 Largest 3 | 2 2 2 3 3 3 Hottest 102 | 80 80 60 96 102 69 Shots Fired 663 | 26 132 10 193 156 146 Gun 656 | 26 132 10 190 152 146 Cannon . | . . . . . . Launcher 7 | . . . 3 4 . Special . | . . . . . . Kinetic 547 | . 65 5 184 147 146 Thermal 109 | 26 67 5 6 5 . Explosive 7 | . . . 3 4 . Electromagnetic . | . . . . . . Robot Hit Streak 28 | 7 10 5 16 19 28 Robot Miss Streak 5 | 2 3 2 5 2 4 Penetration Max . | . . . . . . Secondary Targets 9 | . 1 . 4 1 3 Max Gunslinging Chain 1 | . 1 . 1 1 1 Shots Hit Robots 433 | 17 82 5 112 111 106 Core Hits 169 | 6 35 2 46 51 29 Critical Kills 1 | . . . . . 1 Critical Parts Destroyed 4 | . 1 . 1 1 1 Critical Strikes 6 | . 1 . 2 1 2 Burn 1 | . . . 1 . . Destroy 5 | . 1 . 1 1 2 Melee Attacks 24 | . . . . 3 21 Impact . | . . . . . . Slashing 24 | . . . . 3 21 Piercing . | . . . . . . Sneak Attacks . | . . . . . . Combat Hostiles . | . . . . . . Follow-up Attacks . | . . . . . . Damage Inflicted 7558 | 181 990 57 1921 2751 1658 Guns 6393 | 181 987 57 1738 1772 1658 Cannons . | . . . . . . Explosions 1160 | . . . 183 977 . Melee . | . . . . . . Ramming 5 | . 3 . . 2 . Kinetic 5543 | . 492 25 1665 1703 1658 Thermal 850 | 181 495 32 73 69 . Explosive 1160 | . . . 183 977 . Electromagnetic . | . . . . . . Impact . | . . . . . . Slashing . | . . . . . . Piercing . | . . . . . . Highest Corruption 2 | . . . . 1 2 Average Corruption 1 | . . . . 1 1 Corruption Purged . | . . . . . . Corruption Blocked . | . . . . . . Effects 38 | . . . . 11 27 Message Errors 11 | . . . . 2 9 Matter Fused 7 | . . . . 2 5 Heat Flow Errors 11 | . . . . 5 6 Energy Discharges 2 | . . . . . 2 Parts Fused 1 | . . . . . 1 Data Loss (minor) 4 | . . . . 1 3 Data Loss (major) 1 | . . . . 1 . Alerts 1 | . . . . . 1 Overload Shots . | . . . . . . Overflow Damage . | . . . . . . Projectiles . | . . . . . . Explosions . | . . . . . . Melee . | . . . . . . Knockbacks . | . . . . . . Impact . | . . . . . . Kinetic . | . . . . . . Secondary . | . . . . . . Self-Inflicted Damage 28 | . . . 28 . . Shots 1 | . . . 1 . . Rammed 2 | . 1 . . 1 . Targets Rammed 2 | . 1 . . 1 . Kicked . | . . . . . . Crushed . | . . . . . . Highest Temperature 363 | 180 117 12 130 276 363 Average Temperature 56 | 78 33 10 22 52 87 Received Heat Transfer 1227 | . 444 12 270 249 252 Effects 4 | . . . . . 4 Shutdowns 1 | . . . . . 1 Interference 2 | . . . . . 2 Matter Decay 1 | . . . . . 1 Siege Activations . | . . . . . . Martial Activations . | . . . . . . Shielding Activations . | . . . . . . Robots Disrupted . | . . . . . . Combat Hostiles . | . . . . . . Robots Corrupted . | . . . . . . Combat Hostiles . | . . . . . . Parts Fried . | . . . . . . Impact Corruptions . | . . . . . . Robots Melted . | . . . . . . Combat Hostiles . | . . . . . . Parts Melted 6 | 2 . . 1 2 1 Heat Transferred 2032 | 425 1125 75 259 148 . Parts Sabotaged . | . . . . . . Parts Stolen . | . . . . . . Parts Stripped . | . . . . . . Power Chain Reactions . | . . . . . . Alert | -11 -10 -10 -9 -9 -9 ------- Run | Yrd Mat Min Mat Sto Gar Maximum Alert Level 5 | . . . 1 3 5 Low Security (%) 60 | 100 100 100 70 26 . Level 1 9 | . . . 29 12 . Level 2 2 | . . . . 9 4 Level 3 18 | . . . . 51 42 Level 4 5 | . . . . . 32 Level 5 3 | . . . . . 20 High Security . | . . . . . . Max Security . | . . . . . . Peak Influence 1687 | 10 136 20 391 1037 1687 Initial 560 | . . . . 160 560 Average 374 | 2 30 . 143 605 1213 Influence Increases 3939 | 25 411 23 855 1338 1287 Destroy 0b10 Robot/C 2140 | . 280 20 540 640 660 Destroy 0b10 Robot/NC 140 | 25 15 . 40 60 . Destroy Leader 424 | . 76 . 162 166 20 Allied During Kill 471 | . . . . 367 104 Successful Hack 67 | . 8 3 15 18 23 Disable Machine 60 | . . . 30 30 . Anti-Garrison Action 350 | . . . . . 350 Destroy Structure 137 | . 2 . 23 27 85 Lose Combat Pursuer 150 | . 30 . 45 30 45 Influence Decreases 2302 | 25 411 23 474 857 512 Entered New Map 523 | . . . . 221 302 Time Decay 1499 | 25 371 23 464 616 . Lost Part 70 | . 20 . . . 50 Lost Ally 190 | . . . 10 20 160 Purge Threat 20 | . 20 . . . . Squads Dispatched 10 | . 5 . 1 4 . Investigation 4 | . 3 . . 1 . Extermination . | . . . . . . Reinforcement 4 | . 2 . 1 1 . Assault 2 | . . . . 2 . Garrison . | . . . . . . Intercept . | . . . . . . Searches Triggered . | . . . . . . Construction Impeded . | . . . . . . Haulers Reinforced . | . . . . . . Active Scanning Responses . | . . . . . . Cargo Convoy Interrupts . | . . . . . . Stealth | -11 -10 -10 -9 -9 -9 --------- Run | Yrd Mat Min Mat Sto Gar Distress Signals 7 | . 2 . 3 2 . Communications Jammed . | . . . . . . Distress Signals . | . . . . . . Times Spotted 130 | . 25 2 37 32 34 Peak Tracking Total 9 | . 5 1 6 9 7 Tactical Retreats 6 | . 2 . 2 1 1 Traps | -11 -10 -10 -9 -9 -9 ------- Run | Yrd Mat Min Mat Sto Gar Traps Triggered 7 | . 2 . . . 5 Indirectly . | . . . . . . Trap Hack Attempts . | . . . . . . Triggered . | . . . . . . Disarmed . | . . . . . . Reprogrammed . | . . . . . . Reused . | . . . . . . Traps Extracted . | . . . . . . Installed . | . . . . . . Triggered . | . . . . . . Machines | -11 -10 -10 -9 -9 -9 ---------- Run | Yrd Mat Min Mat Sto Gar Machines Disabled 8 | . . . 2 2 4 Max in Single Turn 1 | . . . 1 1 1 Garrison Relay 4 | . . . . . 4 Machines Repaired . | . . . . . . Machines Dismantled . | . . . . . . Machines Sabotaged . | . . . . . . Overloaded Fab Kills . | . . . . . . Hacking | -11 -10 -10 -9 -9 -9 --------- Run | Yrd Mat Min Mat Sto Gar Machines Accessed 29 | . 6 1 7 10 5 Terminals 27 | . 6 1 6 9 5 Fabricators . | . . . . . . Repair Stations . | . . . . . . Recycling Units . | . . . . . . Scanalyzers 1 | . . . 1 . . Garrison Access 1 | . . . . 1 . Total Hacks 72 | . 19 3 16 26 8 Successful 50 | . 13 2 15 17 3 Failed 21 | . 6 1 . 9 5 Catastrophic 2 | . . . . . 2 Database Lockouts 1 | . . . 1 . . Manual 48 | . 16 3 13 16 . Terminals 67 | . 19 3 14 23 8 Fabricators . | . . . . . . Repair Stations . | . . . . . . Recycling Units . | . . . . . . Scanalyzers 2 | . . . 2 . . Garrison Access 3 | . . . . 3 . Terminal Hacks 13 | . 2 . 3 5 3 Robot Analysis 1 | . . . . 1 . Open Door 3 | . . . . 2 1 Branch Access Points 1 | . . . . 1 . Emergency Access Points 1 | . . . . . 1 Unreport Threat 1 | . 1 . . . . Locate Traps 2 | . 1 . . 1 . Recall Investigation 1 | . . . 1 . . Hauler Manifests 2 | . . . 2 . . Security Stations 1 | . . . . . 1 Fabricator Hacks . | . . . . . . Repair Station Hacks . | . . . . . . Recycling Unit Hacks . | . . . . . . Scanalyzer 1 | . . . 1 . . Retrieve Study 1 | . . . 1 . . Garrison Access Hacks 1 | . . . . 1 . Unlock Access 1 | . . . . 1 . Unauthorized Hacks 35 | . 11 2 11 11 . Terminals 35 | . 11 2 11 11 . Assimilate 2 | . 1 . . 1 . Botnet 15 | . 5 1 5 4 . Operators 1 | . . . 1 . . Skim 17 | . 5 1 5 6 . Fabricators . | . . . . . . Repair Stations . | . . . . . . Recycling Units . | . . . . . . Scanalyzers . | . . . . . . Garrison Access . | . . . . . . Data Cores Recovered . | . . . . . . Used . | . . . . . . Hacking Detections 20 | . 4 1 5 5 5 Full Trace Events 4 | . 1 . . 2 1 Feedback Events 2 | . . . . 1 1 Corruption 2 | . . . . 1 1 Feedback Blocked . | . . . . . . Robot Schematics Acquired . | . . . . . . Robots Built . | . . . . . . Authchips . | . . . . . . Time . | . . . . . . Total Robot Build Rating . | . . . . . . Part Schematics Acquired . | . . . . . . Parts Built . | . . . . . . Authchips . | . . . . . . Time . | . . . . . . Total Part Build Rating . | . . . . . . Part Studies Acquired 1 | . . . 1 . . Parts Repaired . | . . . . . . Time . | . . . . . . Parts Recycled . | . . . . . . Recycled Matter . | . . . . . . Retrieved Matter . | . . . . . . Retrieved Components . | . . . . . . Parts Scanalyzed . | . . . . . . Part Schematics Acquired . | . . . . . . Parts Damaged . | . . . . . . Bothacking | -11 -10 -10 -9 -9 -9 ------------ Run | Yrd Mat Min Mat Sto Gar Used RIF Installer 1 | . . . . . 1 Robots Hacked . | . . . . . . Non-combat . | . . . . . . Combat . | . . . . . . Robot Hacks Applied . | . . . . . . Relay Couplers Released 19 | . . . . . 19 Machine Destruction 15 | . . . . . 15 Programmers 4 | . . . . . 4 Fabnet Peak Effective % . | . . . . . . Robots Rewired . | . . . . . . Allies Hacked . | . . . . . . Hacks Repelled . | . . . . . . Allies | -11 -10 -10 -9 -9 -9 -------- Run | Yrd Mat Min Mat Sto Gar Total Allies 15 | . 1 . . 12 2 Largest Group 10 | . 1 1 1 10 7 Highest-Rated Group 134 | . 10 10 10 134 110 Highest-Rated Ally 39 | . 10 10 10 31 39 Total Orders 2 | . . 2 . . . STAY 1 | . . 1 . . . FOLLOW 1 | . . 1 . . . Ally Attacks 185 | . . . . 113 72 Total Damage 1637 | . . . . 1006 631 Kills 36 | . . . . 21 15 Allies Corrupted . | . . . . . . Allies Melted . | . . . . . . Intel | -11 -10 -10 -9 -9 -9 ------- Run | Yrd Mat Min Mat Sto Gar Active Infowar (turns) 4648 | 16 1696 1749 1187 . . Seismic 4648 | 16 1696 1749 1187 . . Robot Analysis Total 1 | . . . . 1 . Derelict Logs Recovered 1 | . . 1 . . . Drone Launches . | . . . . . . Drone Recoveries . | . . . . . . Exploration | -11 -10 -10 -9 -9 -9 ------------- Run | Yrd Mat Min Mat Sto Gar Turns Passed 9706 | 123 2015 1749 2097 2041 1681 Spaces Moved 3916 | 59 750 654 1006 840 607 Core 15 | 15 . . . . . Treads 3532 | . 425 654 1006 840 607 Legs 369 | 44 325 . . . . Wheels . | . . . . . . Hover . | . . . . . . Flight . | . . . . . . Fastest Speed 50 | 50 120 240 160 160 160 Average Speed 201 | 108 227 240 178 160 234 Slowest Speed 260 | 150 260 240 240 160 240 Overloaded Moves . | . . . . . . Propulsion Burnouts . | . . . . . . Robots Hopped . | . . . . . . Potential Cave-ins . | . . . . . . Cave-ins Triggered . | . . . . . . Exploration Rate (%) 77 | 4 95 98 91 94 81 Regions Visited 5 Branch Regions 2 Pre-discovered Areas 5 | . . . 3 2 . Known Exits Taken 2 | . . . 1 1 . Unknown Exits Taken 3 | 1 1 1 . . . Scrap Searched 1 | . . 1 . . . Spaces Dug . | . . . . . . Terrain Destroyed 46 | . . . 21 25 . Melee . | . . . . . . Projectile . | . . . . . . AOE 46 | . . . 21 25 . Terrain Rammed . | . . . . . . Walls Destroyed . | . . . . . . Machines Disabled . | . . . . . . Actions | -11 -10 -10 -9 -9 -9 --------- Run | Yrd Mat Min Mat Sto Gar Total 5180 | 91 926 827 1179 1425 732 Wait 761 | . 82 148 23 498 10 Move 3911 | 58 749 653 1005 839 607 Hop . | . . . . . . Pick Up 73 | 13 15 9 22 1 13 Fast Attach 10 | . . . 5 4 1 Attach 22 | 7 3 . 6 1 5 Detach . | . . . . . . Swap 50 | . 6 4 17 11 12 Drop 65 | . 4 8 33 11 9 Fire 259 | 13 66 5 68 55 52 Melee 24 | . . . . 3 21 Ram . | . . . . . . Kick . | . . . . . . Crush 2 | . 1 . . 1 . Escape Stasis 2 | . . . . . 2 Rewire 1 | . . . . 1 . Trap . | . . . . . . Miscellaneous . | . . . . . . Route ------- -11/Scrapyard -10/Materials (discovered 4 exits: *Mat x3 / *Min) -10/Mines (discovered 2 exits: *Mat x2) -9/Materials (discovered 6 exits: *Mat x3 / *Min / *Sto x2) -9/Storage (discovered 3 exits: *Mat / Rec / Gar) -9/Garrison (discovered 2 exits: *Mat x2) History --------- Turn | Location | Event 20 | -11/Scrapyard | Discovered new exit (range 15) 124 | -11/Scrapyard | Entered Materials 302 | -10/Materials | Build established: Mutant 394 | -10/Materials | Discovered new exit (range 16) 649 | -10/Materials | Discovered new exit (range 12) 1077 | -10/Materials | Discovered new exit (range 16) 1100 | -10/Materials | Core integrity fell below 50% 1812 | -10/Materials | Discovered new exit (range 5) 2139 | -10/Materials | Entered Mines 2139 | -10/Mines | Accompanied by 1 ally 2169 | -10/Mines | Assembled infested the area 2174 | -10/Mines | Assisted by a Guerilla fighting off Assembled 2334 | -10/Mines | Discovered new exit (range 7) 2950 | -10/Mines | Received a Rocket Launcher from a helpful Derelict 3177 | -10/Mines | Discovered new exit (range 7) 3556 | -10/Mines | Joined a pair of Derelicts in attacking an 0b10 outpost 3888 | -10/Mines | Entered Materials 3888 | -9/Materials | Accompanied by 1 ally 3888 | -9/Materials | Evolved 2 slots: Propulsion x1, Weapon x1 4301 | -9/Materials | Build established: Gunner 4399 | -9/Materials | Discovered new exit (range 11) 4428 | -9/Materials | Discovered new exit (range 10) 4748 | -9/Materials | Build established: Scavenger-Gunner 4768 | -9/Materials | Discovered new exit (range 12) 4805 | -9/Materials | Central database locked down 5130 | -9/Materials | Learned Storage garrison access intel 5151 | -9/Materials | Learned location of 1 exit from Storage 5163 | -9/Materials | Learned location of Zion (-7) 5167 | -9/Materials | Identified exit to Storage 5167 | -9/Materials | Identified exit to Materials 5168 | -9/Materials | Identified exit to Mines 5169 | -9/Materials | Learned Storage trap positions 5177 | -9/Materials | Learned location of Recycling (-9) 5381 | -9/Materials | Build established: Tank 5985 | -9/Materials | Entered Storage 5986 | -9/Storage | Identified exit to Recycling 5988 | -9/Storage | Loaded intel: 15 trap records 5989 | -9/Storage | Loaded intel: 1 garrison access location 6417 | -9/Storage | Assisted by bots powering up and referring to "LRC-V3" 6750 | -9/Storage | Build established: Commander-Tank 6952 | -9/Storage | Met a pair of Derelict thieves 7056 | -9/Storage | Lost 3 allies 7660 | -9/Storage | Learned location of 1 exit from Storage 7702 | -9/Storage | Identified exit to Garrison 7828 | -9/Storage | Learned location of 1 exit from Storage 7984 | -9/Storage | Learned location of 2 exits from Materials 8026 | -9/Storage | Entered Garrison 8026 | -9/Garrison | Accompanied by 7 allies 8038 | -9/Garrison | Learned Materials security intel 8072 | -9/Garrison | Triggered checkpoint 8102 | -9/Garrison | Garrison Relay disabled 8275 | -9/Garrison | Lost 4 allies 8406 | -9/Garrison | Triggered checkpoint 8581 | -9/Garrison | Discovered exit to Materials (range 10) 8650 | -9/Garrison | Triggered checkpoint 8748 | -9/Garrison | Core integrity fell below 50% 8805 | -9/Garrison | Rescued a captive Derelict 8812 | -9/Garrison | Rescued a captive Derelict 8844 | -9/Garrison | Triggered checkpoint 8867 | -9/Garrison | Garrison Relay disabled 8966 | -9/Garrison | Build established: Tank 9170 | -9/Garrison | Installed Relay Interface Framework 9252 | -9/Garrison | Triggered checkpoint 9331 | -9/Garrison | Garrison Relay disabled 9356 | -9/Garrison | Garrison Relay disabled 9413 | -9/Garrison | Discovered exit to Materials (range 10) 9629 | -9/Garrison | Build established: Mutant 9650 | -9/Garrison | Spotted B-75 Beast 9683 | -9/Garrison | Core integrity fell below 20% 9707 | -9/Garrison | Destroyed by B-75 Beast with Heavy Machine Gun Last Messages --------------- 09413_ EXIT=FOUND: MATERIALS 09470_ :3YEZKG6%RQ|2BZVHCAVIP%JGK 0RUT 09493_ Acquired 10 matter. 09536_ Connecting with Garrison Terminal... 09637_ Triggered Fusion Bomb Trap. 09637_ An explosion rips through the floor. 09640_ The unstable cave ceiling collapses. 09649_ Triggered Alarm Trap. 09649_ An alarm sounds. 09663_ Imp. Treads destroyed. 09664_ System corrupted: Matter fused (-7). 09669_ Imp. Treads destroyed. 09682_ Autogun+ destroyed. 09683_ Overheating: System interference. 09683_ Autogun+ temporarily disabled. 09689_ Destroyed Med. Reflective Plating. 09691_ Lgt. Treads destroyed. 09702_ Power failure, Hvy. Ion Engine shutdown. 09704_ Overheating: Matter decay (-8). 09707_ Hvy. Ion Engine destroyed. Map ----- +----------------------------------------------------+ | # #### [[## ## #?????# #????????????????????? | | # #??# =[##% ## #######"##???????????????????? | | # #### =[[= ! #???????????????????? | | " *%= ]*%% #???????????????????? | | ###### *%% =[ ## #### #???????????????????? | | ?????## *## ! ## ### ##?# #???????????????????? | | ?????#T ##=%[ ## #?# "#?# #####???????????????? | | ?????## ######## #?# T#?# " +???????????????? | | ###???# #??????# #?#""#?# #####???????+???????? | | # ???+ #??????# #?####?# #???????????????????? | | # #???# #??????# #??????# #???????????????????? | | # #???# #??????# #??????# #???????????????????? | | # #???# #??????# ######## ##### ###???+???????? | | # #???# #??????# ???????? | | #"##### #??????# ??????+? | | #??????#"######### #####+## #??????????? | | #??????# #???????# #???????????????????? | | #"########??????# #???????# #???????????????????? | | # #?????????????# #???????# #?????????+??+??????? | | # #????????????## ##??????# #????+??????????????? | | # #????????????# # #####?# #???????????????????? | | #????????????# #?# #???????????????????? | | ###????????????#! ]]] #?? #???????????????????? | | ???????????????#! ] #??? #???????????????????? | | ???????????????#! # #### ####????????????????? | | ???????????????# %%@/ ;BB#????????????????? | | ??????????????# %% /% ;BB#????????????????? | | ??????????????##/ ### ####????????????????? | | ???????????????#/ ]### #? !#??????????????????? | | ???????????????#/ ]]]#??##?? !#??????????????????? | | ???????????????#######???????##??????????????????? | | ?????????????????????????????????????????????????? | | ?????????????????????????????????????????????????? | | ?????????????????????????????????????????????????? | | ?????????????????????????????????????????????????? | | ?????????????????????????????????????????????????? | | ?????????????????????????????????????????????????? | | ?????????????????????????????????????????????????? | | ?????????????????????????????????????????????????? | | ?????????????????????????????????????????????????? | | ?????????????????????????????????????????????????? | | ?????????????????????????????????????????????????? | | ?????????????????????????????????????????????????? | | ?????????????????????????????????????????????????? | | ?????????????????????????????????????????????????? | | ?????????????????????????????????????????????????? | | ?????????????????????????????????????????????????? | | ?????????????????????????????????????????????????? | | | | | +----------------------------------------------------+ Best States ------------- Heat Dissipation 35 Energy Generation 14 Energy Capacity 280 Matter Stores 300 Matter Capacity 300 Sight Range 16 Terrain Scan Density 10 Armor Coverage 225 Evasion (%) 55 Recoil Reduction 3 Item Schematics ----------------- None Robot Schematics ------------------ None Fabricated ------------ Nothing Repaired ---------- Nothing Studied --------- Autogun | -9/Materials | Hacked Alien Tech Used ----------------- None Achievements -------------- None Challenges ------------ None Game ------ Seed ExplosiveInertialSpoofer Manual? 0 Play Time 00:46:17 Cumulative 239.8 hours Start 2026.04.15 @ 18:52:39 End 2026.04.24 @ 10:49:30 Sessions 3 Manual Loads 0 Difficulty Rogue Special Mode None Game No. 335 Rogue 335 Adventurer 0 Explorer 0 Win Type - Total 4 Types 2/0/0/1/0/0/0/0/0/1 Lore% 76 Gallery% 73 Achievement% 55 Wizard Run 0 Options --------- Layout 0 ASCII 0 Keyboard 0 Movement Mouse Keybinds 0 Fullscreen 1 Font 16/SmallcapsGlow Map View 75x55 Zoom Use 0% Tactical HUD 1 Map Filters NONE Filters NONE Steam 1 RUN: 3b2b3a8d-5dcc-4981-a939-afd15e347421